fUSD/lending_fUSD_20260305
["ID","MTS","AMOUNT","RATE_DAILY","PERIOD"]
[407689696,1772679038444,-961.58486559,0.00041891,15]
[407689697,1772679038454,-997.16350561,0.00041891,15]
[407689698,1772679038464,-500.0,0.00041896,120]
[407689700,1772679038474,-265.36044473,0.00041896,120]
[407689702,1772679038483,-5000.0,0.00041896,120]
[407689703,1772679038492,-2135.57499799,0.00041896,120]
[407689704,1772679038502,-250.0,0.00041896,120]
[407689706,1772679038514,-195.0,0.00041896,120]
[407689708,1772679038523,-336.46478277,0.00041896,120]
[407689710,1772679038532,-300.0,0.00041896,120]
[407689712,1772679038541,-5000.0,0.00041896,120]
[407689714,1772679038550,-195.0,0.00041896,120]
[407689716,1772679038559,-300.0,0.00041897,120]
[407689718,1772679038568,-250.0,0.00041897,120]
[407689719,1772679038577,-233.23408652,0.00041968,30]
[407689720,1772679038586,-1048.50100127,0.00041968,2]
[407689721,1772679038595,-306.61635286,0.00041968,2]
[407689722,1772679038605,-856.13486002,0.00041968,2]
[407689723,1772679038613,-307.87522791,0.00041968,2]
[407689724,1772679038623,-300.0,0.00041968,2]
[407689725,1772679038631,-300.0,0.00041968,2]
[407689726,1772679038641,-459.37693596,0.00041968,2]
[407689727,1772679038650,-300.0,0.00041968,2]
[407689728,1772679038659,-300.0,0.00041968,2]
[407689729,1772679038668,-372.1160746,0.00041968,2]
[407689730,1772679038678,-300.0,0.00041968,2]
[407689731,1772679038687,-300.28645221,0.00041968,2]
[407689732,1772679038696,-519.58908537,0.00041968,2]
[407689733,1772679038706,-306.82968309,0.00041968,2]
[407689734,1772679038719,-300.0,0.00041968,2]
[407689735,1772679038729,-300.0,0.00041968,2]
[407689736,1772679038737,-415.63631739,0.00041968,2]
[407689737,1772679038748,-300.0,0.00041968,2]
[407689738,1772679038757,-300.0,0.00041968,2]
[407689739,1772679038767,-1084.19175733,0.00041968,2]
[407689740,1772679038778,-300.0,0.00041968,2]
[407689741,1772679038788,-300.0,0.00041968,2]
[407689742,1772679038798,-1048.50100127,0.00041968,2]
[407689743,1772679038807,-306.61635286,0.00041968,2]
[407689744,1772679038818,-856.13486002,0.00041968,2]
[407689745,1772679038828,-307.87522791,0.00041968,2]
[407689746,1772679038840,-300.0,0.00041968,2]
[407689747,1772679038852,-300.0,0.00041968,2]
[407689748,1772679038861,-300.0,0.00041968,2]
[407689749,1772679038870,-459.37693596,0.00041968,2]
[407689750,1772679038881,-300.0,0.00041968,2]
[407689751,1772679038890,-372.1160746,0.00041968,2]
[407689752,1772679038899,-300.0,0.00041968,2]
[407689753,1772679038911,-300.28645221,0.00041968,2]
[407689754,1772679038923,-300.0,0.00041968,2]
[407689755,1772679038933,-519.58908537,0.00041968,2]
[407689756,1772679038943,-306.82968309,0.00041968,2]
[407689757,1772679038952,-300.0,0.00041968,2]
[407689758,1772679038964,-300.0,0.00041968,2]
[407689759,1772679038974,-415.63631739,0.00041968,2]
[407689760,1772679038983,-300.0,0.00041968,2]
[407689761,1772679038992,-300.0,0.00041968,2]
[407689762,1772679039001,-300.0,0.00041968,2]
[407689763,1772679039011,-1084.19175733,0.00041968,2]
[407689764,1772679039020,-300.0,0.00041968,2]
[407689765,1772679039029,-300.0,0.00041968,2]
[407689766,1772679039039,-1048.50100127,0.00041968,2]
[407689767,1772679039048,-306.61635286,0.00041968,2]
[407689768,1772679039057,-856.13486002,0.00041968,2]
[407689769,1772679039066,-533.40449236,0.00041968,2]
[407689770,1772679039076,-307.87522791,0.00041968,2]
[407689771,1772679039085,-300.0,0.00041968,2]
[407689772,1772679039095,-459.37693596,0.00041968,2]
[407689773,1772679039104,-300.0,0.00041968,2]
[407689774,1772679039113,-300.0,0.00041968,2]
[407689775,1772679039123,-372.1160746,0.00041968,2]
[407689776,1772679039132,-300.0,0.00041968,2]
[407689777,1772679039142,-300.28645221,0.00041968,2]
[407689778,1772679039152,-300.0,0.00041968,2]
[407689779,1772679039162,-519.58908537,0.00041968,2]
[407689780,1772679039174,-306.82968309,0.00041968,2]
[407689781,1772679039186,-300.0,0.00041968,2]
[407689782,1772679039196,-300.0,0.00041968,2]
[407689783,1772679039207,-415.63631739,0.00041968,2]
[407689784,1772679039220,-300.0,0.00041968,2]
[407689785,1772679039229,-450.85788465,0.00041968,2]
[407689786,1772679039239,-300.0,0.00041968,2]
[407689787,1772679039249,-1084.19175733,0.00041968,2]
[407689788,1772679039259,-300.0,0.00041968,2]
[407689789,1772679039268,-300.0,0.00041968,2]
[407689790,1772679039278,-1048.50100127,0.00041968,2]
[407689791,1772679039287,-306.61635286,0.00041968,2]
[407689792,1772679039296,-856.13486002,0.00041968,2]
[407689793,1772679039316,-307.87522791,0.00041968,2]
[407689794,1772679039326,-300.0,0.00041968,2]
[407689795,1772679039335,-459.37693596,0.00041968,2]
[407689796,1772679039346,-300.0,0.00041968,2]
[407689797,1772679039356,-300.0,0.00041968,2]
[407689798,1772679039367,-372.1160746,0.00041968,2]
[407689799,1772679039377,-300.0,0.00041968,2]
[407689800,1772679039386,-300.28645221,0.00041968,2]
[407689801,1772679039395,-519.58908537,0.00041968,2]
[407689802,1772679039406,-306.82968309,0.00041968,2]
[407689803,1772679039416,-340.3622316,0.00041968,2]
[407689804,1772679039426,-300.0,0.00041968,2]
[407689805,1772679039436,-420.72563203,0.00041968,2]
[407689806,1772679039445,-300.0,0.00041968,2]
[407689807,1772679039455,-577.05134899,0.00041968,2]
[407689808,1772679039464,-1084.19175733,0.00041968,2]
[407689809,1772679039474,-300.0,0.00041968,2]
[407689810,1772679039484,-300.0,0.00041968,2]
[407689811,1772679039494,-151.0,0.00041976,2]
[407689812,1772679039503,-151.0,0.00041976,2]
[407689813,1772679039513,-151.0,0.00041976,2]
[407689814,1772679039523,-151.0,0.00041976,2]
[407689815,1772679039532,-151.0,0.00041976,2]
[407689816,1772679039542,-151.0,0.00041976,2]
[407689817,1772679039551,-151.0,0.00041976,2]
[407689818,1772679039561,-500.0,0.00041976,2]
[407689819,1772679039570,-253.22670345,0.00041976,2]
[407689820,1772679039580,-540.15973111,0.00041976,2]
[407689821,1772679039590,-502.03445888,0.00041976,2]
[407689822,1772679039599,-500.0,0.00041976,2]
[407689823,1772679039609,-500.0,0.00041976,2]
[407689824,1772679039619,-500.0,0.00041976,2]
[407689825,1772679039629,-500.0,0.00041976,2]
[407689826,1772679039639,-500.0,0.00041976,2]
[407689827,1772679039648,-500.0,0.00041976,2]
[407689828,1772679039658,-500.0,0.00041976,2]
[407689829,1772679039667,-500.0,0.00041976,2]
[407689830,1772679039678,-300.97435296,0.00041976,2]
[407689831,1772679039688,-500.0,0.00041976,2]
[407689832,1772679039702,-500.0,0.00041976,2]
[407689833,1772679039711,-500.0,0.00041976,2]
[407689834,1772679039726,-1000.0,0.00042002,2]
[407689835,1772679039737,-462.5929,0.00042002,2]
[407689836,1772679039748,-295.86646181,0.00042055,60]
[407689837,1772679039758,-255.52565502,0.00042076,2]
[407689838,1772679039769,-260.11,0.0004211,90]
[407689839,1772679039779,-154.0,0.000422,120]
[407689840,1772679039790,-166.66,0.00042255,30]
[407689841,1772679039800,-159.0,0.000423,120]
[407689842,1772679039811,-5000.0,0.00042411,120]
[407689844,1772679039822,-2500.0,0.00042427,2]
[407689845,1772679039831,-5000.0,0.000425,120]
[407689846,1772679039846,-168.0,0.00042637,2]
[407689847,1772679039857,-3626.80738915,0.0004295,10]
[407689848,1772679039867,-5000.50000002,0.00043,30]
[407689849,1772679039877,-180.76,0.00043094,60]
[407689850,1772679039887,-295.41062824,0.00043115,60]
[407689851,1772679039903,-2494.58937176,0.00043115,60]
[407689852,1772679039913,-429.21,0.00043451,2]
[407689853,1772679039923,-500.0,0.0004348,30]
[407689854,1772679039933,-205.549188,0.00043717,30]
[407689855,1772679039944,-1003.33,0.000438,120]
[407689856,1772679039954,-1222.3303949,0.00043808,120]
[407689857,1772679039964,-500.0,0.00043835,120]
[407689858,1772679039976,-12403.92203459,0.00043836,120]
[407689859,1772679039992,-500.0,0.00041976,2]
[407689860,1772679040002,-6077.9,0.00043836,120]
[407689861,1772679040018,-1250.4335276,0.00043836,120]
[407689862,1772679040030,-267.74443781,0.00043836,120]
[407689863,1772679040040,-151.0,0.00043836,120]
[407689864,1772679040051,-151.0,0.00043836,120]
[407689865,1772679040061,-151.0,0.00043836,120]
[407689866,1772679040071,-230.61914813,0.00043836,120]
[407689867,1772679040083,-219.38085187,0.00043836,120]
[407689869,1772679040092,-450.0,0.00043836,120]
[407689870,1772679040102,-450.0,0.00043836,120]
[407689871,1772679040112,-450.0,0.00043836,120]
[407689872,1772679040121,-370.787906,0.00043836,14]
[407689873,1772679040132,-68.64302968,0.00043836,14]
[407689875,1772679040145,-302.14487632,0.00043836,14]
[407689876,1772679040155,-370.787906,0.00043836,14]
[407689877,1772679040164,-222.21460693,0.00043885,120]
[407689878,1772679040174,-212.41788,0.000439,120]
[407689879,1772679040184,-39599.97450034,0.00043999,54]
[407689880,1772679040194,-193.44146046,0.00043999,120]
[407689881,1772679040203,-305.71893771,0.00043999,120]
[407689882,1772679040213,-239.07749109,0.00043999,7]
[407689883,1772679040224,-676.13953537,0.00043999,120]
[407689884,1772679040234,-676.13953537,0.00043999,120]
[407689885,1772679040244,-676.13953537,0.00043999,120]
[407689886,1772679040253,-676.13953537,0.00043999,120]
[407689887,1772679040263,-676.13953537,0.00043999,120]
[407689888,1772679040273,-676.13953537,0.00043999,120]
[407689889,1772679040282,-676.13953537,0.00043999,120]
[407689890,1772679040291,-676.13953537,0.00043999,120]
[407689891,1772679040301,-676.13953537,0.00043999,120]
[407689892,1772679040310,-676.13953537,0.00043999,120]
[407689893,1772679040320,-676.13953537,0.00043999,120]
[407689894,1772679040329,-676.13953537,0.00043999,120]
[407689895,1772679040338,-676.13953537,0.00043999,120]
[407689896,1772679040348,-676.13953537,0.00043999,120]
[407689897,1772679040358,-676.13953537,0.00043999,120]
[407689898,1772679040367,-676.13953537,0.00043999,120]
[407689899,1772679040377,-676.13953537,0.00043999,120]
[407689900,1772679040387,-676.13953537,0.00043999,120]
[407689901,1772679040397,-676.13953537,0.00043999,120]
[407689902,1772679040406,-676.13953537,0.00043999,120]
[407689903,1772679040416,-676.13953537,0.00043999,120]
[407689904,1772679040426,-676.13953537,0.00043999,120]
[407689905,1772679040436,-676.13953537,0.00043999,120]
[407689906,1772679040445,-676.13953537,0.00043999,120]
[407689907,1772679040455,-676.13953537,0.00043999,120]
[407689908,1772679040464,-676.13953537,0.00043999,120]
[407689909,1772679040474,-676.13953537,0.00043999,120]
[407689910,1772679040484,-676.13953537,0.00043999,120]
[407689911,1772679040494,-676.13953537,0.00043999,120]
[407689912,1772679040504,-676.13953537,0.00043999,120]
[407689913,1772679040514,-676.13953537,0.00043999,120]
[407689914,1772679040524,-676.13953537,0.00043999,120]
[407689915,1772679040533,-676.13953537,0.00043999,120]
[407689916,1772679040543,-676.13953537,0.00043999,120]
[407689917,1772679040765,-628.29054541,0.00043999,120]
[407689918,1772679040779,-47.84898996,0.00043999,120]
[407689919,1772679040788,-676.13953537,0.00043999,120]
[407689920,1772679040798,-676.13953537,0.00043999,120]
[407689921,1772679040811,-676.13953537,0.00043999,120]
[407689922,1772679040821,-676.13953537,0.00043999,120]
[407689923,1772679040830,-578.92263539,0.00043999,120]
[407689924,1772679040929,-500.0,0.00041976,2]
[407689925,1772679040939,-500.0,0.00041976,2]
[407689926,1772679040950,-217.16754131,0.00041976,2]
[407689927,1772679040960,-370.787906,0.00043836,14]
[407689928,1772679040970,-97.21689998,0.00043999,120]
[407689929,1772679040979,-676.13953537,0.00043999,120]
[407689930,1772679040990,-676.13953537,0.00043999,120]
[407689931,1772679040999,-676.13953537,0.00043999,120]
[407689932,1772679041010,-676.13953537,0.00043999,120]
[407689933,1772679041019,-676.13953537,0.00043999,120]
[407689934,1772679041029,-676.13953537,0.00043999,120]
[407689935,1772679041039,-676.13953537,0.00043999,120]
[407689936,1772679041049,-676.13953537,0.00043999,120]
[407689937,1772679041058,-676.13953537,0.00043999,120]
[407689938,1772679041068,-676.13953537,0.00043999,120]
[407689939,1772679041077,-41.90421873,0.00043999,120]
[407689940,1772679041089,-634.23531664,0.00043999,120]
[407689941,1772679041098,-676.13953537,0.00043999,120]
[407689942,1772679041108,-653.4066161,0.00043999,120]
[407689943,1772679041120,-22.73291927,0.00043999,120]
[407689944,1772679041130,-676.13953537,0.00043999,120]
[407689945,1772679041140,-510.41754536,0.00043999,120]
[407689946,1772679041151,-165.72199001,0.00043999,120]
[407689947,1772679041160,-665.57485512,0.00043999,120]
[407689948,1772679041171,-665.57485512,0.00043999,120]
[407689949,1772679041181,-665.57485512,0.00043999,120]
[407689950,1772679041190,-665.57485512,0.00043999,120]
[407689951,1772679041200,-665.57485512,0.00043999,120]
[407689952,1772679041209,-665.57485512,0.00043999,120]
[407689953,1772679041222,-571.73254318,0.00043999,120]
[407689954,1772679041233,-93.84231194,0.00043999,120]
[407689955,1772679041243,-665.57485512,0.00043999,120]
[407689956,1772679041252,-90.68965848,0.00043999,120]
[407689957,1772679041263,-574.88519664,0.00043999,120]
[407689958,1772679041272,-665.57485512,0.00043999,120]
[407689959,1772679041281,-665.57485512,0.00043999,120]
[407689960,1772679041291,-665.57485512,0.00043999,120]
[407689961,1772679041300,-665.57485512,0.00043999,120]
[407689962,1772679041309,-665.57485512,0.00043999,120]
[407689963,1772679041318,-665.57485512,0.00043999,120]
[407689964,1772679041327,-665.57485512,0.00043999,120]
[407689965,1772679041336,-665.57485512,0.00043999,120]
[407689966,1772679041345,-665.57485512,0.00043999,120]
[407689967,1772679041355,-665.57485512,0.00043999,120]
[407689968,1772679041364,-665.57485512,0.00043999,120]
[407689969,1772679041374,-665.57485512,0.00043999,120]
[407689970,1772679041384,-665.57485512,0.00043999,120]
[407689971,1772679041395,-665.57485512,0.00043999,120]
[407689972,1772679041405,-665.57485512,0.00043999,120]
[407689973,1772679041416,-665.57485512,0.00043999,120]
[407689974,1772679041426,-665.57485512,0.00043999,120]
[407689975,1772679041436,-665.57485512,0.00043999,120]
[407689976,1772679041445,-665.57485515,0.00043999,120]
[407689977,1772679041455,-665.57485515,0.00043999,120]
[407689978,1772679041465,-665.57485515,0.00043999,120]
[407689979,1772679041474,-665.57485515,0.00043999,120]
[407689980,1772679041484,-665.57485515,0.00043999,120]
[407689981,1772679041493,-450.0,0.00043999,120]
[407689982,1772679041502,-450.0,0.00043999,120]
[407689983,1772679041511,-450.0,0.00043999,120]
[407689984,1772679041520,-450.0,0.00043999,120]
[407689985,1772679041529,-370.787906,0.00043999,14]
[407689986,1772679041539,-370.787906,0.00043999,14]
[407689987,1772679041548,-370.787906,0.00043999,14]
[407689988,1772679041557,-370.787906,0.00043999,14]
[407689989,1772679041566,-50000.0,0.00044,30]
[407689990,1772679041575,-159.283944,0.00044,120]
[407689991,1772679041584,-269.755247,0.00044,120]
[407689992,1772679041593,-151.0,0.00044,120]
[407689993,1772679041606,-151.0,0.00044,120]
[407689994,1772679041615,-151.0,0.00044,120]
[407689995,1772679041624,-151.0,0.00044,120]
[407689996,1772679041634,-151.0,0.00044,120]
[407689997,1772679041643,-2092.70232045,0.00044099,15]
[407689998,1772679043171,-173.4635201,0.00038555,2]
[407689999,1772679043182,-1218.681,0.00041653,2]
[407690000,1772679043192,-968.48025603,0.00044099,15]
[407690001,1772679043201,-2000.0,0.000442,2]
[407690002,1772679043210,-370.787906,0.000442,14]
[407690003,1772679043223,-370.787906,0.000442,14]
[407690004,1772679043233,-370.787906,0.000442,14]
[407690005,1772679043243,-370.787906,0.000442,14]
[407690006,1772679043251,-3744.4208,0.000442,30]
[407690007,1772679043261,-3061.18257642,0.0004437,15]
[407690008,1772679043271,-154.0,0.000444,120]
[407690009,1772679043280,-2790.0,0.00044448,60]
[407690010,1772679043290,-551.41,0.00044539,120]
[407690011,1772679043299,-159.0,0.000446,120]
[407690012,1772679043309,-3061.18257642,0.00044641,15]
[407690013,1772679043318,-3501.0,0.00044653,2]
[407690014,1772679043328,-1278.0,0.00044653,2]
[407690015,1772679043337,-151.0,0.00044653,120]
[407690016,1772679043347,-173.739302,0.00044653,120]
[407690017,1772679043357,-151.0,0.00044653,120]
[407690018,1772679043366,-450.0,0.00044653,120]
[407690019,1772679043377,-450.0,0.00044653,120]
[407690020,1772679043387,-450.0,0.00044653,120]
[407690021,1772679043398,-450.0,0.00044653,120]
[407690022,1772679043408,-1212.0,0.00044653,2]
[407690023,1772679043417,-282.0,0.000448,60]
[407690024,1772679043428,-3061.18257642,0.00044913,15]
[407690025,1772679043437,-997.64,0.00044939,120]
[407690026,1772679043450,-4226.39910151,0.00045,120]
[407690027,1772679043539,-150.0,0.00044796,2]
[407690028,1772679043548,-5821.3631579,0.00045,120]
[407690029,1772679043558,-158.29,0.00045,90]
[407690030,1772679043567,-178.8353286,0.00045,120]
[407690031,1772679043577,-591.5115135,0.00045,120]
[407690032,1772679043591,-691.40888573,0.00045,120]
[407690034,1772679046051,-2640.62,0.00045,120]
[407690035,1772679046319,-1238.04148413,0.00045,120]
[407690036,1772679046328,-160.65,0.00045,5]
[407690037,1772679046337,-771.0,0.00045,10]
[407690038,1772679046346,-256.34,0.00045,120]
[407690039,1772679046354,-168.0,0.00045075,2]
[407690040,1772679046363,-3061.18257642,0.00045184,15]
[407690041,1772679046372,-1545.6898488,0.00045383,2]
[407690042,1772679046381,-34.09609065,0.00045417,7]
[407690043,1772679046392,-272.376,0.00045417,7]
[407690073,1772679085438,500.0,0.00035,2]
[407690074,1772679086723,193.11,0.00022408,2]
[407690075,1772679086934,193.11,0.00023588,2]
[407690076,1772679087155,8953.95615168,0.00038,120]
[407690077,1772679087178,10000.01,0.00038,120]
[407690078,1772679087199,1046.03384832,0.00038,120]
[407690079,1772679087228,193.11,0.00024767,2]
[407690080,1772679087388,193.11,0.00025947,2]
[407690081,1772679087610,193.11,0.00027126,2]
[407690082,1772679087813,193.11,0.00028305,2]
[407690083,1772679088036,193.11,0.00029485,2]
[407690084,1772679088254,193.11,0.00030664,2]
[407690085,1772679088463,193.11,0.00031844,2]
[407690086,1772679088662,193.11,0.00033023,2]
[407690087,1772679089102,193.11,0.00034202,2]
[407690088,1772679089332,193.11,0.00035382,2]
[407690089,1772679089515,193.11,0.00036561,2]
[407690090,1772679089712,193.11,0.00037741,2]
[407690091,1772679109005,180.575,0.00037014,30]
[407690092,1772679110657,180.575,0.00037562,30]
[407690093,1772679130491,9638.86,0.00038,120]
[407690094,1772679130512,10000.01,0.00038,120]
[407690095,1772679136571,-361.13,0.00038,120]
[407690096,1772679185459,2095.94,0.0003483,2]
[407690097,1772679235986,7904.07,0.0003483,120]
[407690098,1772679236009,2095.93,0.0003483,120]
[407690099,1772679534912,162.37,0.000127,2]
[407690100,1772679550169,10000.01,0.0002,2]
[407690101,1772679550193,10000.01,0.0002,2]
[407690102,1772679550216,10000.01,0.0002,2]
[407690103,1772679550239,10000.01,0.0002,2]
[407690104,1772679550263,10000.01,0.0002,2]
[407690105,1772679550286,10000.01,0.0002,2]
[407690106,1772679550309,10000.01,0.0002,2]
[407690107,1772679550331,10000.01,0.0002,2]
[407690108,1772679550354,10000.01,0.0002,2]
[407690109,1772679550377,10000.01,0.0002,2]
[407690110,1772679550401,1149.4275893,0.0002,2]
[407690111,1772679550424,1149.4275893,0.0002,2]
[407690112,1772679550448,1149.4275893,0.0002,2]
[407690113,1772679550470,1149.4275893,0.0002,2]
[407690114,1772679550492,1149.4275893,0.0002,2]
[407690115,1772679550515,1149.4275893,0.0002,2]
[407690116,1772679550537,1149.4275893,0.0002,2]
[407690117,1772679550559,1149.4275893,0.0002,2]
[407690118,1772679550581,1149.4275893,0.0002,2]
[407690119,1772679550604,1149.4275893,0.0002,2]
[407690120,1772679563389,-7154.40161837,0.0002,2]
[407690121,1772679563649,-10000.01,0.0002,2]
[407690122,1772679563760,-10000.01,0.0002,2]
[407690123,1772679569390,-10000.01,0.0002,2]
[407690124,1772679569510,-10000.01,0.0002,2]
[407690125,1772679569613,-10000.01,0.0002,2]
[407690126,1772679569748,-10000.01,0.0002,2]
[407690127,1772679569878,-10000.01,0.0002,2]
[407690128,1772679599356,5000.01,0.00017,2]
[407690129,1772679599377,5000.01,0.00017,2]
[407690130,1772679599397,5000.01,0.00017,2]
[407690131,1772679599417,1218.87093131,0.00017,2]
[407690132,1772679610097,3781.13906869,0.0001799,2]
[407690133,1772679610118,5000.01,0.0001799,2]
[407690134,1772679610139,5000.01,0.0001799,2]
[407690135,1772679610160,5000.01,0.0001799,2]
[407690136,1772679610181,5000.01,0.0001799,2]
[407690137,1772679610202,3218.82093131,0.0001799,2]
[407690138,1772679745552,-10000.01,0.00019,2]
[407690139,1772679745923,-10000.01,0.00019,2]
[407690140,1772679746056,-3000.03,0.00019,2]
[407690141,1772679746083,-3999.95,0.00019,2]
[407690142,1772679746260,-250.0,0.00019475,2]
[407690143,1772679746289,-252.40844053,0.00019785,2]
[407690144,1772679746316,-734.82152642,0.0001995,15]
[407690145,1772679746345,-2525.5500661,0.00019974,2]
[407690146,1772679746407,-2474.4499339,0.00019974,2]
[407690147,1772679746442,-1200.0,0.00019999,2]
[407690148,1772679746470,-300.0,0.00019999,2]
[407690149,1772679746498,-300.0,0.00019999,2]
[407690150,1772679746526,-325.0,0.00019999,2]
[407690151,1772679746602,-5750.01,0.0002,2]
[407690152,1772679752423,-10000.01,0.0002,2]
[407690153,1772679752488,154.05,0.0001778,2]
[407690154,1772679752529,-1587.89501769,0.0002,2]
[407690155,1772679752556,-250.0,0.000209,2]
[407690156,1772679752583,-420.0,0.00021777,2]
[407690157,1772679752612,-1680.0,0.00021881,2]
[407690158,1772679752715,-5000.0,0.00021945,2]
[407690159,1772679752765,-1137.14088206,0.00023,2]
[407690160,1772679752774,-160.0,0.00023,2]
[407690161,1772679752783,-587.0,0.00023712,2]
[407690162,1772679753324,154.05,0.0001805,2]
[407690163,1772679753771,154.05,0.0001832,2]
[407690164,1772679754340,154.06,0.0001859,2]
[407690165,1772679755573,-1871.0,0.00023941,2]
[407690166,1772679755603,-823.0,0.0002582,2]
[407690167,1772679755631,-1255.0,0.0002703,2]
[407690168,1772679755658,-718.0,0.00027084,2]
[407690169,1772679755686,-195.0,0.00027252,2]
[407690170,1772679755714,-81.01,0.00027252,2]
[407690171,1772679755912,-113.99,0.00027252,2]
[407690172,1772679772207,-344.8900235,0.00029716,2]
[407690173,1772679772235,-2224.54386954,0.000298,7]
[407690174,1772679793784,981.0,0.000298,2]
[407690176,1772679855772,785.1866329,0.00021566,2]
[407690177,1772679855981,785.1866329,0.00024429,2]
[407690178,1772679856403,785.1866329,0.00027291,2]
[407690181,1772680191901,1504.439354,0.00030153,2]
[407690188,1772680232119,-785.1866329,0.00030154,2]
[407690190,1772680232129,-195.0,0.00030577,120]
[407690192,1772680232139,-250.0,0.00031661,2]
[407690195,1772680232148,-195.0,0.00031831,120]
[407690197,1772680232157,-300.0,0.00033168,3]
[407690199,1772680232166,-400.0,0.00033168,2]
[407690200,1772680232175,-400.0,0.00033168,3]
[407690202,1772680232185,-495.0,0.00033168,3]
[407690203,1772680232194,-198.2799765,0.00033169,120]
[407690205,1772680232206,-250.0,0.00033169,2]
[407690206,1772680232215,-195.0,0.00033169,120]
[407690207,1772680232225,-5000.0,0.00033169,120]
[407690208,1772680232234,-166.66,0.00033514,30]
[407690209,1772680232244,-250.0,0.00033941,2]
[407690210,1772680232252,-1324.17503844,0.00034,10]
[407690211,1772680232262,-166.66,0.0003422,30]
[407690212,1772680232271,-32767.71289164,0.000349,2]
[407690213,1772680232283,-46034.28710836,0.000349,2]
[407690214,1772680232292,-166.66,0.00034925,30]
[407690215,1772680232301,-264.73530605,0.00035391,2]
[407690216,1772680232310,-151.0,0.00035497,14]
[407690217,1772680232318,-1288.0,0.00035499,2]
[407690218,1772680232328,-5532.0,0.000356,3]
[407690220,1772680232337,-160.44915373,0.00035616,2]
[407690221,1772680232346,-166.66,0.00035631,30]
[407690222,1772680232355,-560.0,0.00035631,2]
[407690223,1772680232364,-25062.01,0.0003629,10]
[407690224,1772680232372,-5532.0,0.000363,5]
[407690225,1772680232382,-166.66,0.00036336,30]
[407690226,1772680232391,-871.35275769,0.0003639,2]
[407690227,1772680232400,-7280.71818797,0.000367,2]
[407690228,1772680232409,-3240.0,0.0003675,120]
[407690229,1772680232418,-151.0,0.00037021,14]
[407690230,1772680232427,-151.0,0.00037021,14]
[407690231,1772680232435,-9999.99,0.00037024,2]
[407690232,1772680232444,-3195.69,0.00037024,2]
[407690233,1772680232453,-299.99,0.00037024,30]
[407690234,1772680232461,-23175.67213046,0.00037024,2]
[407690235,1772680232472,-3073.65786954,0.00037024,2]
[407690236,1772680232481,-12862.66535853,0.00037024,10]
[407690237,1772680232492,-400.0,0.00037024,10]
[407690239,1772680238236,-1120.43290127,0.00037024,10]
[407690240,1772680238249,-653.07,0.00037024,10]
[407690241,1772680238344,-9362.65463228,0.00037024,10]
[407690242,1772680238357,-1812.79020205,0.00037024,10]
[407690243,1772680238399,-3796.15690587,0.00037024,10]
[407690244,1772680238408,-2097.93402044,0.00037024,20]
[407690245,1772680238418,-1541.28597956,0.00037024,20]
[407690246,1772680238427,-1299.71775701,0.00037024,2]
[407690247,1772680238453,-8700.27224299,0.00037024,2]
[407690248,1772680238462,-1114.81,0.00037024,2]
[407690249,1772680238471,-4396.36040961,0.00037024,30]
[407690280,1772680240350,-603.62959039,0.00037024,30]
[407690281,1772680240360,-149.30040961,0.00037024,2]
[407690286,1772680243287,-200.15959039,0.00037024,2]
[407690287,1772680243312,-2246.45645045,0.00037024,2]
[407690288,1772680243338,-1937.27221359,0.00037024,2]
[407690289,1772680243364,-2406.53133596,0.00037024,2]
[407690290,1772680243386,-999.99,0.00037024,10]